{"text_format":"1","workbook":"xlsx","n_sheets":2,"sheets":["Laskentatyökalu","Laskenta"],"not_rendered":{"charts":1,"images":1,"macros":1,"external_links":0,"defined_names":0,"comments":0,"pivot_tables":0},"unopened":[],"bounds":{"document_bytes":16777216,"sheet_cells":100000,"rows_first":2000,"rows_last":500,"rows_between":2000,"halvings":0,"cell_chars":16384,"cell_head_chars":4096},"cells_cut":0,"cells_raw":0,"read":"whole","date_system":"1900"}

{"sheet":"Laskentatyökalu","index":0,"n_rows":40,"n_cols":5,"rows_kept":40,"cut":false,"hidden":false,"merged":[[0,2,2,4],[27,1,27,2],[34,1,34,2],[3,2,3,3],[4,2,4,3],[37,1,37,2],[29,1,29,2],[30,1,30,2],[35,1,35,2],[36,1,36,2]]}
[null,null,"TOIMENPITEEN TALOUDELLINEN KANNATTAVUUS"]
[]
[]
[null,"TOIMENPIDE:","Hanke 1"]
[null,"PÄIVÄMÄÄRÄ/TEKIJÄ:","6.3.2018 / Etunimi Sukunimi"]
[]
[null,"LASKENTA-ARVOT"]
[null,"Tarkasteluaika",null,null,"a"]
[null,"Reaalinen laskentakorko",null,null,"%"]
[]
[null,"TOIMENPITEEN SÄÄSTÖVAIKUTUKSET"]
[null,null,"Energian säästö",null,"MWh/a"]
[null,null,"Yksikköhinta",null,"€/MWh"]
[null,null,"Energian hinnan nousu",null,"%/a"]
[null,null,"Energian säästö",null,"MWh/a"]
[null,null,"Yksikköhinta",null,"€/MWh"]
[null,null,"Energianhinnan nousu",null,"%/a"]
[null,null,"Energian säästö",null,"MWh/a"]
[null,null,"Yksikköhinta",null,"€/MWh"]
[null,null,"Energianhinnan nousu",null,"%/a"]
[null,"Vesi","Veden säästö",null,"m³/a"]
[null,null,"Yksikköhinta",null,"€/m³"]
[null,null,"Veden hinnan nousu",null,"%/a"]
[null,"Muut kuin energiaan liittyvät säästöt vuodessa","Summa",null,"€/a"]
[]
[null,"TOIMENPITEEN KUSTANNUKSET"]
[null,"Investoinnin suuruus",null,null,"€"]
[null,"Huolto- ja korjauskustannukset vuosittain",null,null,"€/a"]
[]
[null,"Kertaluonteinen huolto- ja korjauskustannus",null,null,"€/a"]
[null,"Huolto- ja korjauskustannuksen toteutusvuosi",null,null,"a"]
[]
[null,"TALOUDELLISET TUNNUSLUVUT LASKENNAN TULOKSENA"]
[null,"Energia- ja vesikustannusten nettosäästöt vuodessa",null,{"$f":"$D$12*$D$13+$D$15*$D$16+$D$18*$D$19+$D$21*$D$22","v":0},"€/a"]
[null,"Toimenpiteen nettosäästö vuodessa",null,{"$f":"D12*D13+D15*D16+D18*D19+D21*D22+D24-D28","v":0},"€/a"]
[null,"Suora takaisinmaksuaika",null,{"$f":"D27/D35","v":{"$error":"#DIV/0!"}},"a"]
[null,"Nettonykyarvo",null,{"$f":"VLOOKUP($D$8,Laskenta!$H:$N,7,0)","v":0},"€"]
[null,"Sisäinen korkokanta",null,{"$f":"IRR(OFFSET(Laskenta!K3,0,0,D8+1,1),0)*100","v":{"$error":"#NUM!"}},"%"]
[]
[null,"NETTONYKYARVON KUVAAJA"]

{"sheet":"Laskenta","index":1,"n_rows":103,"n_cols":15,"rows_kept":103,"cut":false,"hidden":true,"merged":[]}
[]
[null,"Energialaji 1","Energialaji 2","Energialaji 3","Kulutuksen yksikkö","Kustannusten yksikkö",null,"Vuosi","Investoinnit vuosittain €","Säästöt vuodessa €","Nettosäästö €","Diskonttaustekijä","Diskontattu säästö €","NPV",0]
[null,"Energialaji 1","Energialaji 2","Energialaji 3","-","-",null,0,{"$f":"Laskentatyökalu!D27","v":0},0,{"$f":"J3-I3","v":0},{"$f":"1/(1+Laskentatyökalu!$D$9/100)^Laskenta!H3","v":1},{"$f":"L3*J3-I3","v":0},{"$f":"M3","v":0},0]
[null,"Kaukolämpö","Kaukolämpö","Kaukolämpö","MWh/a","€/MWh",null,1,{"$f":"IF(H4=Laskentatyökalu!$D$31,Laskentatyökalu!$D$30,0)","v":0},{"$f":"Laskentatyökalu!$D$12*Laskentatyökalu!$D$13*(1+Laskentatyökalu!$D$14/100)^Laskenta!H4+Laskentatyökalu!$D$15*Laskentatyökalu!$D$16*(1+Laskentatyökalu!$D$17/100)^Laskenta!H4+Laskentatyökalu!$D$18*Laskentatyökalu!$D$19*(1+Laskentatyökalu!$D$20/100)^H4+Laskentatyökalu!$D$21*Laskentatyökalu!$D$22*(1+Laskentatyökalu!$D$23/100)^Laskenta!H4+Laskentatyökalu!$D$24-Laskentatyökalu!$D$28","v":0},{"$f":"J4-I4","v":0},{"$f":"1/(1+Laskentatyökalu!$D$9/100)^Laskenta!H4","v":1},0,{"$f":"N3+M4","v":0},0]
[null,"Höyry","Höyry","Höyry","MWh/a","€/MWh",null,2,{"$f":"IF(H5=Laskentatyökalu!$D$31,Laskentatyökalu!$D$30,0)","v":0},{"$f":"Laskentatyökalu!$D$12*Laskentatyökalu!$D$13*(1+Laskentatyökalu!$D$14/100)^Laskenta!H5+Laskentatyökalu!$D$15*Laskentatyökalu!$D$16*(1+Laskentatyökalu!$D$17/100)^Laskenta!H5+Laskentatyökalu!$D$18*Laskentatyökalu!$D$19*(1+Laskentatyökalu!$D$20/100)^H5+Laskentatyökalu!$D$21*Laskentatyökalu!$D$22*(1+Laskentatyökalu!$D$23/100)^Laskenta!H5+Laskentatyökalu!$D$24-Laskentatyökalu!$D$28","v":0},{"$f":"J5-I5","v":0},{"$f":"1/(1+Laskentatyökalu!$D$9/100)^Laskenta!H5","v":1},0,{"$f":"N4+M5","v":0},0]
[null,"Sähkö","Sähkö","Sähkö","MWh/a","€/MWh",null,3,{"$f":"IF(H6=Laskentatyökalu!$D$31,Laskentatyökalu!$D$30,0)","v":0},{"$f":"Laskentatyökalu!$D$12*Laskentatyökalu!$D$13*(1+Laskentatyökalu!$D$14/100)^Laskenta!H6+Laskentatyökalu!$D$15*Laskentatyökalu!$D$16*(1+Laskentatyökalu!$D$17/100)^Laskenta!H6+Laskentatyökalu!$D$18*Laskentatyökalu!$D$19*(1+Laskentatyökalu!$D$20/100)^H6+Laskentatyökalu!$D$21*Laskentatyökalu!$D$22*(1+Laskentatyökalu!$D$23/100)^Laskenta!H6+Laskentatyökalu!$D$24-Laskentatyökalu!$D$28","v":0},0,{"$f":"1/(1+Laskentatyökalu!$D$9/100)^Laskenta!H6","v":1},0,{"$f":"N5+M6","v":0},0]
[null,"Raskas polttoöljy ","Raskas polttoöljy ","Raskas polttoöljy ","MWh/a","€/MWh",null,4,{"$f":"IF(H7=Laskentatyökalu!$D$31,Laskentatyökalu!$D$30,0)","v":0},{"$f":"Laskentatyökalu!$D$12*Laskentatyökalu!$D$13*(1+Laskentatyökalu!$D$14/100)^Laskenta!H7+Laskentatyökalu!$D$15*Laskentatyökalu!$D$16*(1+Laskentatyökalu!$D$17/100)^Laskenta!H7+Laskentatyökalu!$D$18*Laskentatyökalu!$D$19*(1+Laskentatyökalu!$D$20/100)^H7+Laskentatyökalu!$D$21*Laskentatyökalu!$D$22*(1+Laskentatyökalu!$D$23/100)^Laskenta!H7+Laskentatyökalu!$D$24-Laskentatyökalu!$D$28","v":0},0,{"$f":"1/(1+Laskentatyökalu!$D$9/100)^Laskenta!H7","v":1},0,0,0]
[null,"Kevyt polttoöljy","Kevyt polttoöljy","Kevyt polttoöljy","MWh/a","€/MWh",null,5,{"$f":"IF(H8=Laskentatyökalu!$D$31,Laskentatyökalu!$D$30,0)","v":0},{"$f":"Laskentatyökalu!$D$12*Laskentatyökalu!$D$13*(1+Laskentatyökalu!$D$14/100)^Laskenta!H8+Laskentatyökalu!$D$15*Laskentatyökalu!$D$16*(1+Laskentatyökalu!$D$17/100)^Laskenta!H8+Laskentatyökalu!$D$18*Laskentatyökalu!$D$19*(1+Laskentatyökalu!$D$20/100)^H8+Laskentatyökalu!$D$21*Laskentatyökalu!$D$22*(1+Laskentatyökalu!$D$23/100)^Laskenta!H8+Laskentatyökalu!$D$24-Laskentatyökalu!$D$28","v":0},0,{"$f":"1/(1+Laskentatyökalu!$D$9/100)^Laskenta!H8","v":1},0,0,0]
[null,"Maakaasu","Maakaasu","Maakaasu","MWh/a","€/MWh",null,6,{"$f":"IF(H9=Laskentatyökalu!$D$31,Laskentatyökalu!$D$30,0)","v":0},{"$f":"Laskentatyökalu!$D$12*Laskentatyökalu!$D$13*(1+Laskentatyökalu!$D$14/100)^Laskenta!H9+Laskentatyökalu!$D$15*Laskentatyökalu!$D$16*(1+Laskentatyökalu!$D$17/100)^Laskenta!H9+Laskentatyökalu!$D$18*Laskentatyökalu!$D$19*(1+Laskentatyökalu!$D$20/100)^H9+Laskentatyökalu!$D$21*Laskentatyökalu!$D$22*(1+Laskentatyökalu!$D$23/100)^Laskenta!H9+Laskentatyökalu!$D$24-Laskentatyökalu!$D$28","v":0},0,{"$f":"1/(1+Laskentatyökalu!$D$9/100)^Laskenta!H9","v":1},0,0,0]
[null,"Nestekaasu ","Nestekaasu ","Nestekaasu ","MWh/a","€/MWh",null,7,{"$f":"IF(H10=Laskentatyökalu!$D$31,Laskentatyökalu!$D$30,0)","v":0},{"$f":"Laskentatyökalu!$D$12*Laskentatyökalu!$D$13*(1+Laskentatyökalu!$D$14/100)^Laskenta!H10+Laskentatyökalu!$D$15*Laskentatyökalu!$D$16*(1+Laskentatyökalu!$D$17/100)^Laskenta!H10+Laskentatyökalu!$D$18*Laskentatyökalu!$D$19*(1+Laskentatyökalu!$D$20/100)^H10+Laskentatyökalu!$D$21*Laskentatyökalu!$D$22*(1+Laskentatyökalu!$D$23/100)^Laskenta!H10+Laskentatyökalu!$D$24-Laskentatyökalu!$D$28","v":0},0,{"$f":"1/(1+Laskentatyökalu!$D$9/100)^Laskenta!H10","v":1},0,0,0]
[null,"Turve ","Turve ","Turve ","MWh/a","€/MWh",null,8,{"$f":"IF(H11=Laskentatyökalu!$D$31,Laskentatyökalu!$D$30,0)","v":0},{"$f":"Laskentatyökalu!$D$12*Laskentatyökalu!$D$13*(1+Laskentatyökalu!$D$14/100)^Laskenta!H11+Laskentatyökalu!$D$15*Laskentatyökalu!$D$16*(1+Laskentatyökalu!$D$17/100)^Laskenta!H11+Laskentatyökalu!$D$18*Laskentatyökalu!$D$19*(1+Laskentatyökalu!$D$20/100)^H11+Laskentatyökalu!$D$21*Laskentatyökalu!$D$22*(1+Laskentatyökalu!$D$23/100)^Laskenta!H11+Laskentatyökalu!$D$24-Laskentatyökalu!$D$28","v":0},0,{"$f":"1/(1+Laskentatyökalu!$D$9/100)^Laskenta!H11","v":1},0,0,0]
[null,"Kivihiili ","Kivihiili ","Kivihiili ","MWh/a","€/MWh",null,9,{"$f":"IF(H12=Laskentatyökalu!$D$31,Laskentatyökalu!$D$30,0)","v":0},{"$f":"Laskentatyökalu!$D$12*Laskentatyökalu!$D$13*(1+Laskentatyökalu!$D$14/100)^Laskenta!H12+Laskentatyökalu!$D$15*Laskentatyökalu!$D$16*(1+Laskentatyökalu!$D$17/100)^Laskenta!H12+Laskentatyökalu!$D$18*Laskentatyökalu!$D$19*(1+Laskentatyökalu!$D$20/100)^H12+Laskentatyökalu!$D$21*Laskentatyökalu!$D$22*(1+Laskentatyökalu!$D$23/100)^Laskenta!H12+Laskentatyökalu!$D$24-Laskentatyökalu!$D$28","v":0},0,{"$f":"1/(1+Laskentatyökalu!$D$9/100)^Laskenta!H12","v":1},0,0,0]
[null,"Koksi ","Koksi ","Koksi ","MWh/a","€/MWh",null,10,{"$f":"IF(H13=Laskentatyökalu!$D$31,Laskentatyökalu!$D$30,0)","v":0},{"$f":"Laskentatyökalu!$D$12*Laskentatyökalu!$D$13*(1+Laskentatyökalu!$D$14/100)^Laskenta!H13+Laskentatyökalu!$D$15*Laskentatyökalu!$D$16*(1+Laskentatyökalu!$D$17/100)^Laskenta!H13+Laskentatyökalu!$D$18*Laskentatyökalu!$D$19*(1+Laskentatyökalu!$D$20/100)^H13+Laskentatyökalu!$D$21*Laskentatyökalu!$D$22*(1+Laskentatyökalu!$D$23/100)^Laskenta!H13+Laskentatyökalu!$D$24-Laskentatyökalu!$D$28","v":0},0,{"$f":"1/(1+Laskentatyökalu!$D$9/100)^Laskenta!H13","v":1},0,0,0]
[null,"Prosessikaasu","Prosessikaasu","Prosessikaasu","MWh/a","€/MWh",null,11,{"$f":"IF(H14=Laskentatyökalu!$D$31,Laskentatyökalu!$D$30,0)","v":0},{"$f":"Laskentatyökalu!$D$12*Laskentatyökalu!$D$13*(1+Laskentatyökalu!$D$14/100)^Laskenta!H14+Laskentatyökalu!$D$15*Laskentatyökalu!$D$16*(1+Laskentatyökalu!$D$17/100)^Laskenta!H14+Laskentatyökalu!$D$18*Laskentatyökalu!$D$19*(1+Laskentatyökalu!$D$20/100)^H14+Laskentatyökalu!$D$21*Laskentatyökalu!$D$22*(1+Laskentatyökalu!$D$23/100)^Laskenta!H14+Laskentatyökalu!$D$24-Laskentatyökalu!$D$28","v":0},0,{"$f":"1/(1+Laskentatyökalu!$D$9/100)^Laskenta!H14","v":1},0,0,0]
[null,"PuuHake","PuuHake","PuuHake","MWh/a","€/MWh",null,12,{"$f":"IF(H15=Laskentatyökalu!$D$31,Laskentatyökalu!$D$30,0)","v":0},{"$f":"Laskentatyökalu!$D$12*Laskentatyökalu!$D$13*(1+Laskentatyökalu!$D$14/100)^Laskenta!H15+Laskentatyökalu!$D$15*Laskentatyökalu!$D$16*(1+Laskentatyökalu!$D$17/100)^Laskenta!H15+Laskentatyökalu!$D$18*Laskentatyökalu!$D$19*(1+Laskentatyökalu!$D$20/100)^H15+Laskentatyökalu!$D$21*Laskentatyökalu!$D$22*(1+Laskentatyökalu!$D$23/100)^Laskenta!H15+Laskentatyökalu!$D$24-Laskentatyökalu!$D$28","v":0},0,{"$f":"1/(1+Laskentatyökalu!$D$9/100)^Laskenta!H15","v":1},0,0,0]
[null,"Puupelletti","Puupelletti","Puupelletti","MWh/a","€/MWh",null,13,{"$f":"IF(H16=Laskentatyökalu!$D$31,Laskentatyökalu!$D$30,0)","v":0},{"$f":"Laskentatyökalu!$D$12*Laskentatyökalu!$D$13*(1+Laskentatyökalu!$D$14/100)^Laskenta!H16+Laskentatyökalu!$D$15*Laskentatyökalu!$D$16*(1+Laskentatyökalu!$D$17/100)^Laskenta!H16+Laskentatyökalu!$D$18*Laskentatyökalu!$D$19*(1+Laskentatyökalu!$D$20/100)^H16+Laskentatyökalu!$D$21*Laskentatyökalu!$D$22*(1+Laskentatyökalu!$D$23/100)^Laskenta!H16+Laskentatyökalu!$D$24-Laskentatyökalu!$D$28","v":0},0,{"$f":"1/(1+Laskentatyökalu!$D$9/100)^Laskenta!H16","v":1},0,0,0]
[null,"Muu puuperäinen polttoaine","Muu puuperäinen polttoaine","Muu puuperäinen polttoaine","MWh/a","€/MWh",null,14,{"$f":"IF(H17=Laskentatyökalu!$D$31,Laskentatyökalu!$D$30,0)","v":0},{"$f":"Laskentatyökalu!$D$12*Laskentatyökalu!$D$13*(1+Laskentatyökalu!$D$14/100)^Laskenta!H17+Laskentatyökalu!$D$15*Laskentatyökalu!$D$16*(1+Laskentatyökalu!$D$17/100)^Laskenta!H17+Laskentatyökalu!$D$18*Laskentatyökalu!$D$19*(1+Laskentatyökalu!$D$20/100)^H17+Laskentatyökalu!$D$21*Laskentatyökalu!$D$22*(1+Laskentatyökalu!$D$23/100)^Laskenta!H17+Laskentatyökalu!$D$24-Laskentatyökalu!$D$28","v":0},0,{"$f":"1/(1+Laskentatyökalu!$D$9/100)^Laskenta!H17","v":1},0,0,0]
[null,"Muu uusiutuva polttoaine","Muu uusiutuva polttoaine","Muu uusiutuva polttoaine","MWh/a","€/MWh",null,15,{"$f":"IF(H18=Laskentatyökalu!$D$31,Laskentatyökalu!$D$30,0)","v":0},{"$f":"Laskentatyökalu!$D$12*Laskentatyökalu!$D$13*(1+Laskentatyökalu!$D$14/100)^Laskenta!H18+Laskentatyökalu!$D$15*Laskentatyökalu!$D$16*(1+Laskentatyökalu!$D$17/100)^Laskenta!H18+Laskentatyökalu!$D$18*Laskentatyökalu!$D$19*(1+Laskentatyökalu!$D$20/100)^H18+Laskentatyökalu!$D$21*Laskentatyökalu!$D$22*(1+Laskentatyökalu!$D$23/100)^Laskenta!H18+Laskentatyökalu!$D$24-Laskentatyökalu!$D$28","v":0},0,{"$f":"1/(1+Laskentatyökalu!$D$9/100)^Laskenta!H18","v":1},0,0,0]
[null,"Muu fossiilinen polttoaine","Muu fossiilinen polttoaine","Muu fossiilinen polttoaine","MWh/a","€/MWh",null,16,{"$f":"IF(H19=Laskentatyökalu!$D$31,Laskentatyökalu!$D$30,0)","v":0},{"$f":"Laskentatyökalu!$D$12*Laskentatyökalu!$D$13*(1+Laskentatyökalu!$D$14/100)^Laskenta!H19+Laskentatyökalu!$D$15*Laskentatyökalu!$D$16*(1+Laskentatyökalu!$D$17/100)^Laskenta!H19+Laskentatyökalu!$D$18*Laskentatyökalu!$D$19*(1+Laskentatyökalu!$D$20/100)^H19+Laskentatyökalu!$D$21*Laskentatyökalu!$D$22*(1+Laskentatyökalu!$D$23/100)^Laskenta!H19+Laskentatyökalu!$D$24-Laskentatyökalu!$D$28","v":0},0,{"$f":"1/(1+Laskentatyökalu!$D$9/100)^Laskenta!H19","v":1},0,0,0]
[null,"Kaukojäähdytys","Kaukojäähdytys","Kaukojäähdytys","MWh/a","€/MWh",null,17,{"$f":"IF(H20=Laskentatyökalu!$D$31,Laskentatyökalu!$D$30,0)","v":0},{"$f":"Laskentatyökalu!$D$12*Laskentatyökalu!$D$13*(1+Laskentatyökalu!$D$14/100)^Laskenta!H20+Laskentatyökalu!$D$15*Laskentatyökalu!$D$16*(1+Laskentatyökalu!$D$17/100)^Laskenta!H20+Laskentatyökalu!$D$18*Laskentatyökalu!$D$19*(1+Laskentatyökalu!$D$20/100)^H20+Laskentatyökalu!$D$21*Laskentatyökalu!$D$22*(1+Laskentatyökalu!$D$23/100)^Laskenta!H20+Laskentatyökalu!$D$24-Laskentatyökalu!$D$28","v":0},0,{"$f":"1/(1+Laskentatyökalu!$D$9/100)^Laskenta!H20","v":1},0,0,0]
[null,null,null,null,null,null,null,18,{"$f":"IF(H21=Laskentatyökalu!$D$31,Laskentatyökalu!$D$30,0)","v":0},{"$f":"Laskentatyökalu!$D$12*Laskentatyökalu!$D$13*(1+Laskentatyökalu!$D$14/100)^Laskenta!H21+Laskentatyökalu!$D$15*Laskentatyökalu!$D$16*(1+Laskentatyökalu!$D$17/100)^Laskenta!H21+Laskentatyökalu!$D$18*Laskentatyökalu!$D$19*(1+Laskentatyökalu!$D$20/100)^H21+Laskentatyökalu!$D$21*Laskentatyökalu!$D$22*(1+Laskentatyökalu!$D$23/100)^Laskenta!H21+Laskentatyökalu!$D$24-Laskentatyökalu!$D$28","v":0},0,{"$f":"1/(1+Laskentatyökalu!$D$9/100)^Laskenta!H21","v":1},0,0,0]
[null,null,null,null,null,null,null,19,{"$f":"IF(H22=Laskentatyökalu!$D$31,Laskentatyökalu!$D$30,0)","v":0},{"$f":"Laskentatyökalu!$D$12*Laskentatyökalu!$D$13*(1+Laskentatyökalu!$D$14/100)^Laskenta!H22+Laskentatyökalu!$D$15*Laskentatyökalu!$D$16*(1+Laskentatyökalu!$D$17/100)^Laskenta!H22+Laskentatyökalu!$D$18*Laskentatyökalu!$D$19*(1+Laskentatyökalu!$D$20/100)^H22+Laskentatyökalu!$D$21*Laskentatyökalu!$D$22*(1+Laskentatyökalu!$D$23/100)^Laskenta!H22+Laskentatyökalu!$D$24-Laskentatyökalu!$D$28","v":0},0,{"$f":"1/(1+Laskentatyökalu!$D$9/100)^Laskenta!H22","v":1},0,0,0]
[null,"Vesi",null,null,"m³/a","€/m³",null,20,{"$f":"IF(H23=Laskentatyökalu!$D$31,Laskentatyökalu!$D$30,0)","v":0},{"$f":"Laskentatyökalu!$D$12*Laskentatyökalu!$D$13*(1+Laskentatyökalu!$D$14/100)^Laskenta!H23+Laskentatyökalu!$D$15*Laskentatyökalu!$D$16*(1+Laskentatyökalu!$D$17/100)^Laskenta!H23+Laskentatyökalu!$D$18*Laskentatyökalu!$D$19*(1+Laskentatyökalu!$D$20/100)^H23+Laskentatyökalu!$D$21*Laskentatyökalu!$D$22*(1+Laskentatyökalu!$D$23/100)^Laskenta!H23+Laskentatyökalu!$D$24-Laskentatyökalu!$D$28","v":0},0,{"$f":"1/(1+Laskentatyökalu!$D$9/100)^Laskenta!H23","v":1},0,0,0]
[null,null,null,null,null,null,null,21,{"$f":"IF(H24=Laskentatyökalu!$D$31,Laskentatyökalu!$D$30,0)","v":0},{"$f":"Laskentatyökalu!$D$12*Laskentatyökalu!$D$13*(1+Laskentatyökalu!$D$14/100)^Laskenta!H24+Laskentatyökalu!$D$15*Laskentatyökalu!$D$16*(1+Laskentatyökalu!$D$17/100)^Laskenta!H24+Laskentatyökalu!$D$18*Laskentatyökalu!$D$19*(1+Laskentatyökalu!$D$20/100)^H24+Laskentatyökalu!$D$21*Laskentatyökalu!$D$22*(1+Laskentatyökalu!$D$23/100)^Laskenta!H24+Laskentatyökalu!$D$24-Laskentatyökalu!$D$28","v":0},0,{"$f":"1/(1+Laskentatyökalu!$D$9/100)^Laskenta!H24","v":1},0,0,0]
[null,null,null,null,null,null,null,22,{"$f":"IF(H25=Laskentatyökalu!$D$31,Laskentatyökalu!$D$30,0)","v":0},{"$f":"Laskentatyökalu!$D$12*Laskentatyökalu!$D$13*(1+Laskentatyökalu!$D$14/100)^Laskenta!H25+Laskentatyökalu!$D$15*Laskentatyökalu!$D$16*(1+Laskentatyökalu!$D$17/100)^Laskenta!H25+Laskentatyökalu!$D$18*Laskentatyökalu!$D$19*(1+Laskentatyökalu!$D$20/100)^H25+Laskentatyökalu!$D$21*Laskentatyökalu!$D$22*(1+Laskentatyökalu!$D$23/100)^Laskenta!H25+Laskentatyökalu!$D$24-Laskentatyökalu!$D$28","v":0},0,{"$f":"1/(1+Laskentatyökalu!$D$9/100)^Laskenta!H25","v":1},0,0,0]
[null,null,null,null,null,null,null,23,{"$f":"IF(H26=Laskentatyökalu!$D$31,Laskentatyökalu!$D$30,0)","v":0},{"$f":"Laskentatyökalu!$D$12*Laskentatyökalu!$D$13*(1+Laskentatyökalu!$D$14/100)^Laskenta!H26+Laskentatyökalu!$D$15*Laskentatyökalu!$D$16*(1+Laskentatyökalu!$D$17/100)^Laskenta!H26+Laskentatyökalu!$D$18*Laskentatyökalu!$D$19*(1+Laskentatyökalu!$D$20/100)^H26+Laskentatyökalu!$D$21*Laskentatyökalu!$D$22*(1+Laskentatyökalu!$D$23/100)^Laskenta!H26+Laskentatyökalu!$D$24-Laskentatyökalu!$D$28","v":0},0,{"$f":"1/(1+Laskentatyökalu!$D$9/100)^Laskenta!H26","v":1},0,0,0]
[null,null,null,null,null,null,null,24,{"$f":"IF(H27=Laskentatyökalu!$D$31,Laskentatyökalu!$D$30,0)","v":0},{"$f":"Laskentatyökalu!$D$12*Laskentatyökalu!$D$13*(1+Laskentatyökalu!$D$14/100)^Laskenta!H27+Laskentatyökalu!$D$15*Laskentatyökalu!$D$16*(1+Laskentatyökalu!$D$17/100)^Laskenta!H27+Laskentatyökalu!$D$18*Laskentatyökalu!$D$19*(1+Laskentatyökalu!$D$20/100)^H27+Laskentatyökalu!$D$21*Laskentatyökalu!$D$22*(1+Laskentatyökalu!$D$23/100)^Laskenta!H27+Laskentatyökalu!$D$24-Laskentatyökalu!$D$28","v":0},0,{"$f":"1/(1+Laskentatyökalu!$D$9/100)^Laskenta!H27","v":1},0,0,0]
[null,null,null,null,null,null,null,25,{"$f":"IF(H28=Laskentatyökalu!$D$31,Laskentatyökalu!$D$30,0)","v":0},{"$f":"Laskentatyökalu!$D$12*Laskentatyökalu!$D$13*(1+Laskentatyökalu!$D$14/100)^Laskenta!H28+Laskentatyökalu!$D$15*Laskentatyökalu!$D$16*(1+Laskentatyökalu!$D$17/100)^Laskenta!H28+Laskentatyökalu!$D$18*Laskentatyökalu!$D$19*(1+Laskentatyökalu!$D$20/100)^H28+Laskentatyökalu!$D$21*Laskentatyökalu!$D$22*(1+Laskentatyökalu!$D$23/100)^Laskenta!H28+Laskentatyökalu!$D$24-Laskentatyökalu!$D$28","v":0},0,{"$f":"1/(1+Laskentatyökalu!$D$9/100)^Laskenta!H28","v":1},0,0,0]
[null,null,null,null,null,null,null,26,{"$f":"IF(H29=Laskentatyökalu!$D$31,Laskentatyökalu!$D$30,0)","v":0},{"$f":"Laskentatyökalu!$D$12*Laskentatyökalu!$D$13*(1+Laskentatyökalu!$D$14/100)^Laskenta!H29+Laskentatyökalu!$D$15*Laskentatyökalu!$D$16*(1+Laskentatyökalu!$D$17/100)^Laskenta!H29+Laskentatyökalu!$D$18*Laskentatyökalu!$D$19*(1+Laskentatyökalu!$D$20/100)^H29+Laskentatyökalu!$D$21*Laskentatyökalu!$D$22*(1+Laskentatyökalu!$D$23/100)^Laskenta!H29+Laskentatyökalu!$D$24-Laskentatyökalu!$D$28","v":0},0,{"$f":"1/(1+Laskentatyökalu!$D$9/100)^Laskenta!H29","v":1},0,0,0]
[null,null,null,null,null,null,null,27,{"$f":"IF(H30=Laskentatyökalu!$D$31,Laskentatyökalu!$D$30,0)","v":0},{"$f":"Laskentatyökalu!$D$12*Laskentatyökalu!$D$13*(1+Laskentatyökalu!$D$14/100)^Laskenta!H30+Laskentatyökalu!$D$15*Laskentatyökalu!$D$16*(1+Laskentatyökalu!$D$17/100)^Laskenta!H30+Laskentatyökalu!$D$18*Laskentatyökalu!$D$19*(1+Laskentatyökalu!$D$20/100)^H30+Laskentatyökalu!$D$21*Laskentatyökalu!$D$22*(1+Laskentatyökalu!$D$23/100)^Laskenta!H30+Laskentatyökalu!$D$24-Laskentatyökalu!$D$28","v":0},0,{"$f":"1/(1+Laskentatyökalu!$D$9/100)^Laskenta!H30","v":1},0,0,0]
[null,null,null,null,null,null,null,28,{"$f":"IF(H31=Laskentatyökalu!$D$31,Laskentatyökalu!$D$30,0)","v":0},{"$f":"Laskentatyökalu!$D$12*Laskentatyökalu!$D$13*(1+Laskentatyökalu!$D$14/100)^Laskenta!H31+Laskentatyökalu!$D$15*Laskentatyökalu!$D$16*(1+Laskentatyökalu!$D$17/100)^Laskenta!H31+Laskentatyökalu!$D$18*Laskentatyökalu!$D$19*(1+Laskentatyökalu!$D$20/100)^H31+Laskentatyökalu!$D$21*Laskentatyökalu!$D$22*(1+Laskentatyökalu!$D$23/100)^Laskenta!H31+Laskentatyökalu!$D$24-Laskentatyökalu!$D$28","v":0},0,{"$f":"1/(1+Laskentatyökalu!$D$9/100)^Laskenta!H31","v":1},0,0,0]
[null,null,null,null,null,null,null,29,{"$f":"IF(H32=Laskentatyökalu!$D$31,Laskentatyökalu!$D$30,0)","v":0},{"$f":"Laskentatyökalu!$D$12*Laskentatyökalu!$D$13*(1+Laskentatyökalu!$D$14/100)^Laskenta!H32+Laskentatyökalu!$D$15*Laskentatyökalu!$D$16*(1+Laskentatyökalu!$D$17/100)^Laskenta!H32+Laskentatyökalu!$D$18*Laskentatyökalu!$D$19*(1+Laskentatyökalu!$D$20/100)^H32+Laskentatyökalu!$D$21*Laskentatyökalu!$D$22*(1+Laskentatyökalu!$D$23/100)^Laskenta!H32+Laskentatyökalu!$D$24-Laskentatyökalu!$D$28","v":0},0,{"$f":"1/(1+Laskentatyökalu!$D$9/100)^Laskenta!H32","v":1},0,0,0]
[null,null,null,null,null,null,null,30,{"$f":"IF(H33=Laskentatyökalu!$D$31,Laskentatyökalu!$D$30,0)","v":0},{"$f":"Laskentatyökalu!$D$12*Laskentatyökalu!$D$13*(1+Laskentatyökalu!$D$14/100)^Laskenta!H33+Laskentatyökalu!$D$15*Laskentatyökalu!$D$16*(1+Laskentatyökalu!$D$17/100)^Laskenta!H33+Laskentatyökalu!$D$18*Laskentatyökalu!$D$19*(1+Laskentatyökalu!$D$20/100)^H33+Laskentatyökalu!$D$21*Laskentatyökalu!$D$22*(1+Laskentatyökalu!$D$23/100)^Laskenta!H33+Laskentatyökalu!$D$24-Laskentatyökalu!$D$28","v":0},0,{"$f":"1/(1+Laskentatyökalu!$D$9/100)^Laskenta!H33","v":1},0,0,0]
[null,null,null,null,null,null,null,31,{"$f":"IF(H34=Laskentatyökalu!$D$31,Laskentatyökalu!$D$30,0)","v":0},{"$f":"Laskentatyökalu!$D$12*Laskentatyökalu!$D$13*(1+Laskentatyökalu!$D$14/100)^Laskenta!H34+Laskentatyökalu!$D$15*Laskentatyökalu!$D$16*(1+Laskentatyökalu!$D$17/100)^Laskenta!H34+Laskentatyökalu!$D$18*Laskentatyökalu!$D$19*(1+Laskentatyökalu!$D$20/100)^H34+Laskentatyökalu!$D$21*Laskentatyökalu!$D$22*(1+Laskentatyökalu!$D$23/100)^Laskenta!H34+Laskentatyökalu!$D$24-Laskentatyökalu!$D$28","v":0},0,{"$f":"1/(1+Laskentatyökalu!$D$9/100)^Laskenta!H34","v":1},0,0,0]
[null,null,null,null,null,null,null,32,{"$f":"IF(H35=Laskentatyökalu!$D$31,Laskentatyökalu!$D$30,0)","v":0},{"$f":"Laskentatyökalu!$D$12*Laskentatyökalu!$D$13*(1+Laskentatyökalu!$D$14/100)^Laskenta!H35+Laskentatyökalu!$D$15*Laskentatyökalu!$D$16*(1+Laskentatyökalu!$D$17/100)^Laskenta!H35+Laskentatyökalu!$D$18*Laskentatyökalu!$D$19*(1+Laskentatyökalu!$D$20/100)^H35+Laskentatyökalu!$D$21*Laskentatyökalu!$D$22*(1+Laskentatyökalu!$D$23/100)^Laskenta!H35+Laskentatyökalu!$D$24-Laskentatyökalu!$D$28","v":0},0,{"$f":"1/(1+Laskentatyökalu!$D$9/100)^Laskenta!H35","v":1},{"$f":"L35*J35-I35","v":0},0,0]
[null,null,null,null,null,null,null,33,{"$f":"IF(H36=Laskentatyökalu!$D$31,Laskentatyökalu!$D$30,0)","v":0},{"$f":"Laskentatyökalu!$D$12*Laskentatyökalu!$D$13*(1+Laskentatyökalu!$D$14/100)^Laskenta!H36+Laskentatyökalu!$D$15*Laskentatyökalu!$D$16*(1+Laskentatyökalu!$D$17/100)^Laskenta!H36+Laskentatyökalu!$D$18*Laskentatyökalu!$D$19*(1+Laskentatyökalu!$D$20/100)^H36+Laskentatyökalu!$D$21*Laskentatyökalu!$D$22*(1+Laskentatyökalu!$D$23/100)^Laskenta!H36+Laskentatyökalu!$D$24-Laskentatyökalu!$D$28","v":0},0,{"$f":"1/(1+Laskentatyökalu!$D$9/100)^Laskenta!H36","v":1},0,0,0]
[null,null,null,null,null,null,null,34,{"$f":"IF(H37=Laskentatyökalu!$D$31,Laskentatyökalu!$D$30,0)","v":0},{"$f":"Laskentatyökalu!$D$12*Laskentatyökalu!$D$13*(1+Laskentatyökalu!$D$14/100)^Laskenta!H37+Laskentatyökalu!$D$15*Laskentatyökalu!$D$16*(1+Laskentatyökalu!$D$17/100)^Laskenta!H37+Laskentatyökalu!$D$18*Laskentatyökalu!$D$19*(1+Laskentatyökalu!$D$20/100)^H37+Laskentatyökalu!$D$21*Laskentatyökalu!$D$22*(1+Laskentatyökalu!$D$23/100)^Laskenta!H37+Laskentatyökalu!$D$24-Laskentatyökalu!$D$28","v":0},0,{"$f":"1/(1+Laskentatyökalu!$D$9/100)^Laskenta!H37","v":1},0,0,0]
[null,null,null,null,null,null,null,35,{"$f":"IF(H38=Laskentatyökalu!$D$31,Laskentatyökalu!$D$30,0)","v":0},{"$f":"Laskentatyökalu!$D$12*Laskentatyökalu!$D$13*(1+Laskentatyökalu!$D$14/100)^Laskenta!H38+Laskentatyökalu!$D$15*Laskentatyökalu!$D$16*(1+Laskentatyökalu!$D$17/100)^Laskenta!H38+Laskentatyökalu!$D$18*Laskentatyökalu!$D$19*(1+Laskentatyökalu!$D$20/100)^H38+Laskentatyökalu!$D$21*Laskentatyökalu!$D$22*(1+Laskentatyökalu!$D$23/100)^Laskenta!H38+Laskentatyökalu!$D$24-Laskentatyökalu!$D$28","v":0},0,{"$f":"1/(1+Laskentatyökalu!$D$9/100)^Laskenta!H38","v":1},0,0,0]
[null,null,null,null,null,null,null,36,{"$f":"IF(H39=Laskentatyökalu!$D$31,Laskentatyökalu!$D$30,0)","v":0},{"$f":"Laskentatyökalu!$D$12*Laskentatyökalu!$D$13*(1+Laskentatyökalu!$D$14/100)^Laskenta!H39+Laskentatyökalu!$D$15*Laskentatyökalu!$D$16*(1+Laskentatyökalu!$D$17/100)^Laskenta!H39+Laskentatyökalu!$D$18*Laskentatyökalu!$D$19*(1+Laskentatyökalu!$D$20/100)^H39+Laskentatyökalu!$D$21*Laskentatyökalu!$D$22*(1+Laskentatyökalu!$D$23/100)^Laskenta!H39+Laskentatyökalu!$D$24-Laskentatyökalu!$D$28","v":0},0,{"$f":"1/(1+Laskentatyökalu!$D$9/100)^Laskenta!H39","v":1},0,0,0]
[null,null,null,null,null,null,null,37,{"$f":"IF(H40=Laskentatyökalu!$D$31,Laskentatyökalu!$D$30,0)","v":0},{"$f":"Laskentatyökalu!$D$12*Laskentatyökalu!$D$13*(1+Laskentatyökalu!$D$14/100)^Laskenta!H40+Laskentatyökalu!$D$15*Laskentatyökalu!$D$16*(1+Laskentatyökalu!$D$17/100)^Laskenta!H40+Laskentatyökalu!$D$18*Laskentatyökalu!$D$19*(1+Laskentatyökalu!$D$20/100)^H40+Laskentatyökalu!$D$21*Laskentatyökalu!$D$22*(1+Laskentatyökalu!$D$23/100)^Laskenta!H40+Laskentatyökalu!$D$24-Laskentatyökalu!$D$28","v":0},0,{"$f":"1/(1+Laskentatyökalu!$D$9/100)^Laskenta!H40","v":1},0,0,0]
[null,null,null,null,null,null,null,38,{"$f":"IF(H41=Laskentatyökalu!$D$31,Laskentatyökalu!$D$30,0)","v":0},{"$f":"Laskentatyökalu!$D$12*Laskentatyökalu!$D$13*(1+Laskentatyökalu!$D$14/100)^Laskenta!H41+Laskentatyökalu!$D$15*Laskentatyökalu!$D$16*(1+Laskentatyökalu!$D$17/100)^Laskenta!H41+Laskentatyökalu!$D$18*Laskentatyökalu!$D$19*(1+Laskentatyökalu!$D$20/100)^H41+Laskentatyökalu!$D$21*Laskentatyökalu!$D$22*(1+Laskentatyökalu!$D$23/100)^Laskenta!H41+Laskentatyökalu!$D$24-Laskentatyökalu!$D$28","v":0},0,{"$f":"1/(1+Laskentatyökalu!$D$9/100)^Laskenta!H41","v":1},0,0,0]
[null,null,null,null,null,null,null,39,{"$f":"IF(H42=Laskentatyökalu!$D$31,Laskentatyökalu!$D$30,0)","v":0},{"$f":"Laskentatyökalu!$D$12*Laskentatyökalu!$D$13*(1+Laskentatyökalu!$D$14/100)^Laskenta!H42+Laskentatyökalu!$D$15*Laskentatyökalu!$D$16*(1+Laskentatyökalu!$D$17/100)^Laskenta!H42+Laskentatyökalu!$D$18*Laskentatyökalu!$D$19*(1+Laskentatyökalu!$D$20/100)^H42+Laskentatyökalu!$D$21*Laskentatyökalu!$D$22*(1+Laskentatyökalu!$D$23/100)^Laskenta!H42+Laskentatyökalu!$D$24-Laskentatyökalu!$D$28","v":0},0,{"$f":"1/(1+Laskentatyökalu!$D$9/100)^Laskenta!H42","v":1},0,0,0]
[null,null,null,null,null,null,null,40,{"$f":"IF(H43=Laskentatyökalu!$D$31,Laskentatyökalu!$D$30,0)","v":0},{"$f":"Laskentatyökalu!$D$12*Laskentatyökalu!$D$13*(1+Laskentatyökalu!$D$14/100)^Laskenta!H43+Laskentatyökalu!$D$15*Laskentatyökalu!$D$16*(1+Laskentatyökalu!$D$17/100)^Laskenta!H43+Laskentatyökalu!$D$18*Laskentatyökalu!$D$19*(1+Laskentatyökalu!$D$20/100)^H43+Laskentatyökalu!$D$21*Laskentatyökalu!$D$22*(1+Laskentatyökalu!$D$23/100)^Laskenta!H43+Laskentatyökalu!$D$24-Laskentatyökalu!$D$28","v":0},0,{"$f":"1/(1+Laskentatyökalu!$D$9/100)^Laskenta!H43","v":1},0,0,0]
[null,null,null,null,null,null,null,41,{"$f":"IF(H44=Laskentatyökalu!$D$31,Laskentatyökalu!$D$30,0)","v":0},{"$f":"Laskentatyökalu!$D$12*Laskentatyökalu!$D$13*(1+Laskentatyökalu!$D$14/100)^Laskenta!H44+Laskentatyökalu!$D$15*Laskentatyökalu!$D$16*(1+Laskentatyökalu!$D$17/100)^Laskenta!H44+Laskentatyökalu!$D$18*Laskentatyökalu!$D$19*(1+Laskentatyökalu!$D$20/100)^H44+Laskentatyökalu!$D$21*Laskentatyökalu!$D$22*(1+Laskentatyökalu!$D$23/100)^Laskenta!H44+Laskentatyökalu!$D$24-Laskentatyökalu!$D$28","v":0},0,{"$f":"1/(1+Laskentatyökalu!$D$9/100)^Laskenta!H44","v":1},0,0,0]
[null,null,null,null,null,null,null,42,{"$f":"IF(H45=Laskentatyökalu!$D$31,Laskentatyökalu!$D$30,0)","v":0},{"$f":"Laskentatyökalu!$D$12*Laskentatyökalu!$D$13*(1+Laskentatyökalu!$D$14/100)^Laskenta!H45+Laskentatyökalu!$D$15*Laskentatyökalu!$D$16*(1+Laskentatyökalu!$D$17/100)^Laskenta!H45+Laskentatyökalu!$D$18*Laskentatyökalu!$D$19*(1+Laskentatyökalu!$D$20/100)^H45+Laskentatyökalu!$D$21*Laskentatyökalu!$D$22*(1+Laskentatyökalu!$D$23/100)^Laskenta!H45+Laskentatyökalu!$D$24-Laskentatyökalu!$D$28","v":0},0,{"$f":"1/(1+Laskentatyökalu!$D$9/100)^Laskenta!H45","v":1},0,0,0]
[null,null,null,null,null,null,null,43,{"$f":"IF(H46=Laskentatyökalu!$D$31,Laskentatyökalu!$D$30,0)","v":0},{"$f":"Laskentatyökalu!$D$12*Laskentatyökalu!$D$13*(1+Laskentatyökalu!$D$14/100)^Laskenta!H46+Laskentatyökalu!$D$15*Laskentatyökalu!$D$16*(1+Laskentatyökalu!$D$17/100)^Laskenta!H46+Laskentatyökalu!$D$18*Laskentatyökalu!$D$19*(1+Laskentatyökalu!$D$20/100)^H46+Laskentatyökalu!$D$21*Laskentatyökalu!$D$22*(1+Laskentatyökalu!$D$23/100)^Laskenta!H46+Laskentatyökalu!$D$24-Laskentatyökalu!$D$28","v":0},0,{"$f":"1/(1+Laskentatyökalu!$D$9/100)^Laskenta!H46","v":1},0,0,0]
[null,null,null,null,null,null,null,44,{"$f":"IF(H47=Laskentatyökalu!$D$31,Laskentatyökalu!$D$30,0)","v":0},{"$f":"Laskentatyökalu!$D$12*Laskentatyökalu!$D$13*(1+Laskentatyökalu!$D$14/100)^Laskenta!H47+Laskentatyökalu!$D$15*Laskentatyökalu!$D$16*(1+Laskentatyökalu!$D$17/100)^Laskenta!H47+Laskentatyökalu!$D$18*Laskentatyökalu!$D$19*(1+Laskentatyökalu!$D$20/100)^H47+Laskentatyökalu!$D$21*Laskentatyökalu!$D$22*(1+Laskentatyökalu!$D$23/100)^Laskenta!H47+Laskentatyökalu!$D$24-Laskentatyökalu!$D$28","v":0},0,{"$f":"1/(1+Laskentatyökalu!$D$9/100)^Laskenta!H47","v":1},0,0,0]
[null,null,null,null,null,null,null,45,{"$f":"IF(H48=Laskentatyökalu!$D$31,Laskentatyökalu!$D$30,0)","v":0},{"$f":"Laskentatyökalu!$D$12*Laskentatyökalu!$D$13*(1+Laskentatyökalu!$D$14/100)^Laskenta!H48+Laskentatyökalu!$D$15*Laskentatyökalu!$D$16*(1+Laskentatyökalu!$D$17/100)^Laskenta!H48+Laskentatyökalu!$D$18*Laskentatyökalu!$D$19*(1+Laskentatyökalu!$D$20/100)^H48+Laskentatyökalu!$D$21*Laskentatyökalu!$D$22*(1+Laskentatyökalu!$D$23/100)^Laskenta!H48+Laskentatyökalu!$D$24-Laskentatyökalu!$D$28","v":0},0,{"$f":"1/(1+Laskentatyökalu!$D$9/100)^Laskenta!H48","v":1},0,0,0]
[null,null,null,null,null,null,null,46,{"$f":"IF(H49=Laskentatyökalu!$D$31,Laskentatyökalu!$D$30,0)","v":0},{"$f":"Laskentatyökalu!$D$12*Laskentatyökalu!$D$13*(1+Laskentatyökalu!$D$14/100)^Laskenta!H49+Laskentatyökalu!$D$15*Laskentatyökalu!$D$16*(1+Laskentatyökalu!$D$17/100)^Laskenta!H49+Laskentatyökalu!$D$18*Laskentatyökalu!$D$19*(1+Laskentatyökalu!$D$20/100)^H49+Laskentatyökalu!$D$21*Laskentatyökalu!$D$22*(1+Laskentatyökalu!$D$23/100)^Laskenta!H49+Laskentatyökalu!$D$24-Laskentatyökalu!$D$28","v":0},0,{"$f":"1/(1+Laskentatyökalu!$D$9/100)^Laskenta!H49","v":1},0,0,0]
[null,null,null,null,null,null,null,47,{"$f":"IF(H50=Laskentatyökalu!$D$31,Laskentatyökalu!$D$30,0)","v":0},{"$f":"Laskentatyökalu!$D$12*Laskentatyökalu!$D$13*(1+Laskentatyökalu!$D$14/100)^Laskenta!H50+Laskentatyökalu!$D$15*Laskentatyökalu!$D$16*(1+Laskentatyökalu!$D$17/100)^Laskenta!H50+Laskentatyökalu!$D$18*Laskentatyökalu!$D$19*(1+Laskentatyökalu!$D$20/100)^H50+Laskentatyökalu!$D$21*Laskentatyökalu!$D$22*(1+Laskentatyökalu!$D$23/100)^Laskenta!H50+Laskentatyökalu!$D$24-Laskentatyökalu!$D$28","v":0},0,{"$f":"1/(1+Laskentatyökalu!$D$9/100)^Laskenta!H50","v":1},0,0,0]
[null,null,null,null,null,null,null,48,{"$f":"IF(H51=Laskentatyökalu!$D$31,Laskentatyökalu!$D$30,0)","v":0},{"$f":"Laskentatyökalu!$D$12*Laskentatyökalu!$D$13*(1+Laskentatyökalu!$D$14/100)^Laskenta!H51+Laskentatyökalu!$D$15*Laskentatyökalu!$D$16*(1+Laskentatyökalu!$D$17/100)^Laskenta!H51+Laskentatyökalu!$D$18*Laskentatyökalu!$D$19*(1+Laskentatyökalu!$D$20/100)^H51+Laskentatyökalu!$D$21*Laskentatyökalu!$D$22*(1+Laskentatyökalu!$D$23/100)^Laskenta!H51+Laskentatyökalu!$D$24-Laskentatyökalu!$D$28","v":0},0,{"$f":"1/(1+Laskentatyökalu!$D$9/100)^Laskenta!H51","v":1},0,0,0]
[null,null,null,null,null,null,null,49,{"$f":"IF(H52=Laskentatyökalu!$D$31,Laskentatyökalu!$D$30,0)","v":0},{"$f":"Laskentatyökalu!$D$12*Laskentatyökalu!$D$13*(1+Laskentatyökalu!$D$14/100)^Laskenta!H52+Laskentatyökalu!$D$15*Laskentatyökalu!$D$16*(1+Laskentatyökalu!$D$17/100)^Laskenta!H52+Laskentatyökalu!$D$18*Laskentatyökalu!$D$19*(1+Laskentatyökalu!$D$20/100)^H52+Laskentatyökalu!$D$21*Laskentatyökalu!$D$22*(1+Laskentatyökalu!$D$23/100)^Laskenta!H52+Laskentatyökalu!$D$24-Laskentatyökalu!$D$28","v":0},0,{"$f":"1/(1+Laskentatyökalu!$D$9/100)^Laskenta!H52","v":1},0,0,0]
[null,null,null,null,null,null,null,50,{"$f":"IF(H53=Laskentatyökalu!$D$31,Laskentatyökalu!$D$30,0)","v":0},{"$f":"Laskentatyökalu!$D$12*Laskentatyökalu!$D$13*(1+Laskentatyökalu!$D$14/100)^Laskenta!H53+Laskentatyökalu!$D$15*Laskentatyökalu!$D$16*(1+Laskentatyökalu!$D$17/100)^Laskenta!H53+Laskentatyökalu!$D$18*Laskentatyökalu!$D$19*(1+Laskentatyökalu!$D$20/100)^H53+Laskentatyökalu!$D$21*Laskentatyökalu!$D$22*(1+Laskentatyökalu!$D$23/100)^Laskenta!H53+Laskentatyökalu!$D$24-Laskentatyökalu!$D$28","v":0},0,{"$f":"1/(1+Laskentatyökalu!$D$9/100)^Laskenta!H53","v":1},0,{"$f":"N52+M53","v":0},0]
[null,null,null,null,null,null,null,51,{"$f":"IF(H54=Laskentatyökalu!$D$31,Laskentatyökalu!$D$30,0)","v":0},{"$f":"Laskentatyökalu!$D$12*Laskentatyökalu!$D$13*(1+Laskentatyökalu!$D$14/100)^Laskenta!H54+Laskentatyökalu!$D$15*Laskentatyökalu!$D$16*(1+Laskentatyökalu!$D$17/100)^Laskenta!H54+Laskentatyökalu!$D$18*Laskentatyökalu!$D$19*(1+Laskentatyökalu!$D$20/100)^H54+Laskentatyökalu!$D$21*Laskentatyökalu!$D$22*(1+Laskentatyökalu!$D$23/100)^Laskenta!H54+Laskentatyökalu!$D$24-Laskentatyökalu!$D$28","v":0},0,{"$f":"1/(1+Laskentatyökalu!$D$9/100)^Laskenta!H54","v":1},0,{"$f":"N53+M54","v":0},0]
[null,null,null,null,null,null,null,52,{"$f":"IF(H55=Laskentatyökalu!$D$31,Laskentatyökalu!$D$30,0)","v":0},{"$f":"Laskentatyökalu!$D$12*Laskentatyökalu!$D$13*(1+Laskentatyökalu!$D$14/100)^Laskenta!H55+Laskentatyökalu!$D$15*Laskentatyökalu!$D$16*(1+Laskentatyökalu!$D$17/100)^Laskenta!H55+Laskentatyökalu!$D$18*Laskentatyökalu!$D$19*(1+Laskentatyökalu!$D$20/100)^H55+Laskentatyökalu!$D$21*Laskentatyökalu!$D$22*(1+Laskentatyökalu!$D$23/100)^Laskenta!H55+Laskentatyökalu!$D$24-Laskentatyökalu!$D$28","v":0},0,{"$f":"1/(1+Laskentatyökalu!$D$9/100)^Laskenta!H55","v":1},0,{"$f":"N54+M55","v":0},0]
[null,null,null,null,null,null,null,53,{"$f":"IF(H56=Laskentatyökalu!$D$31,Laskentatyökalu!$D$30,0)","v":0},{"$f":"Laskentatyökalu!$D$12*Laskentatyökalu!$D$13*(1+Laskentatyökalu!$D$14/100)^Laskenta!H56+Laskentatyökalu!$D$15*Laskentatyökalu!$D$16*(1+Laskentatyökalu!$D$17/100)^Laskenta!H56+Laskentatyökalu!$D$18*Laskentatyökalu!$D$19*(1+Laskentatyökalu!$D$20/100)^H56+Laskentatyökalu!$D$21*Laskentatyökalu!$D$22*(1+Laskentatyökalu!$D$23/100)^Laskenta!H56+Laskentatyökalu!$D$24-Laskentatyökalu!$D$28","v":0},0,{"$f":"1/(1+Laskentatyökalu!$D$9/100)^Laskenta!H56","v":1},0,0,0]
[null,null,null,null,null,null,null,54,{"$f":"IF(H57=Laskentatyökalu!$D$31,Laskentatyökalu!$D$30,0)","v":0},{"$f":"Laskentatyökalu!$D$12*Laskentatyökalu!$D$13*(1+Laskentatyökalu!$D$14/100)^Laskenta!H57+Laskentatyökalu!$D$15*Laskentatyökalu!$D$16*(1+Laskentatyökalu!$D$17/100)^Laskenta!H57+Laskentatyökalu!$D$18*Laskentatyökalu!$D$19*(1+Laskentatyökalu!$D$20/100)^H57+Laskentatyökalu!$D$21*Laskentatyökalu!$D$22*(1+Laskentatyökalu!$D$23/100)^Laskenta!H57+Laskentatyökalu!$D$24-Laskentatyökalu!$D$28","v":0},0,{"$f":"1/(1+Laskentatyökalu!$D$9/100)^Laskenta!H57","v":1},0,0,0]
[null,null,null,null,null,null,null,55,{"$f":"IF(H58=Laskentatyökalu!$D$31,Laskentatyökalu!$D$30,0)","v":0},{"$f":"Laskentatyökalu!$D$12*Laskentatyökalu!$D$13*(1+Laskentatyökalu!$D$14/100)^Laskenta!H58+Laskentatyökalu!$D$15*Laskentatyökalu!$D$16*(1+Laskentatyökalu!$D$17/100)^Laskenta!H58+Laskentatyökalu!$D$18*Laskentatyökalu!$D$19*(1+Laskentatyökalu!$D$20/100)^H58+Laskentatyökalu!$D$21*Laskentatyökalu!$D$22*(1+Laskentatyökalu!$D$23/100)^Laskenta!H58+Laskentatyökalu!$D$24-Laskentatyökalu!$D$28","v":0},0,{"$f":"1/(1+Laskentatyökalu!$D$9/100)^Laskenta!H58","v":1},0,0,0]
[null,null,null,null,null,null,null,56,{"$f":"IF(H59=Laskentatyökalu!$D$31,Laskentatyökalu!$D$30,0)","v":0},{"$f":"Laskentatyökalu!$D$12*Laskentatyökalu!$D$13*(1+Laskentatyökalu!$D$14/100)^Laskenta!H59+Laskentatyökalu!$D$15*Laskentatyökalu!$D$16*(1+Laskentatyökalu!$D$17/100)^Laskenta!H59+Laskentatyökalu!$D$18*Laskentatyökalu!$D$19*(1+Laskentatyökalu!$D$20/100)^H59+Laskentatyökalu!$D$21*Laskentatyökalu!$D$22*(1+Laskentatyökalu!$D$23/100)^Laskenta!H59+Laskentatyökalu!$D$24-Laskentatyökalu!$D$28","v":0},0,{"$f":"1/(1+Laskentatyökalu!$D$9/100)^Laskenta!H59","v":1},0,0,0]
[null,null,null,null,null,null,null,57,{"$f":"IF(H60=Laskentatyökalu!$D$31,Laskentatyökalu!$D$30,0)","v":0},{"$f":"Laskentatyökalu!$D$12*Laskentatyökalu!$D$13*(1+Laskentatyökalu!$D$14/100)^Laskenta!H60+Laskentatyökalu!$D$15*Laskentatyökalu!$D$16*(1+Laskentatyökalu!$D$17/100)^Laskenta!H60+Laskentatyökalu!$D$18*Laskentatyökalu!$D$19*(1+Laskentatyökalu!$D$20/100)^H60+Laskentatyökalu!$D$21*Laskentatyökalu!$D$22*(1+Laskentatyökalu!$D$23/100)^Laskenta!H60+Laskentatyökalu!$D$24-Laskentatyökalu!$D$28","v":0},0,{"$f":"1/(1+Laskentatyökalu!$D$9/100)^Laskenta!H60","v":1},0,0,0]
[null,null,null,null,null,null,null,58,{"$f":"IF(H61=Laskentatyökalu!$D$31,Laskentatyökalu!$D$30,0)","v":0},{"$f":"Laskentatyökalu!$D$12*Laskentatyökalu!$D$13*(1+Laskentatyökalu!$D$14/100)^Laskenta!H61+Laskentatyökalu!$D$15*Laskentatyökalu!$D$16*(1+Laskentatyökalu!$D$17/100)^Laskenta!H61+Laskentatyökalu!$D$18*Laskentatyökalu!$D$19*(1+Laskentatyökalu!$D$20/100)^H61+Laskentatyökalu!$D$21*Laskentatyökalu!$D$22*(1+Laskentatyökalu!$D$23/100)^Laskenta!H61+Laskentatyökalu!$D$24-Laskentatyökalu!$D$28","v":0},0,{"$f":"1/(1+Laskentatyökalu!$D$9/100)^Laskenta!H61","v":1},0,0,0]
[null,null,null,null,null,null,null,59,{"$f":"IF(H62=Laskentatyökalu!$D$31,Laskentatyökalu!$D$30,0)","v":0},{"$f":"Laskentatyökalu!$D$12*Laskentatyökalu!$D$13*(1+Laskentatyökalu!$D$14/100)^Laskenta!H62+Laskentatyökalu!$D$15*Laskentatyökalu!$D$16*(1+Laskentatyökalu!$D$17/100)^Laskenta!H62+Laskentatyökalu!$D$18*Laskentatyökalu!$D$19*(1+Laskentatyökalu!$D$20/100)^H62+Laskentatyökalu!$D$21*Laskentatyökalu!$D$22*(1+Laskentatyökalu!$D$23/100)^Laskenta!H62+Laskentatyökalu!$D$24-Laskentatyökalu!$D$28","v":0},0,{"$f":"1/(1+Laskentatyökalu!$D$9/100)^Laskenta!H62","v":1},0,0,0]
[null,null,null,null,null,null,null,60,{"$f":"IF(H63=Laskentatyökalu!$D$31,Laskentatyökalu!$D$30,0)","v":0},{"$f":"Laskentatyökalu!$D$12*Laskentatyökalu!$D$13*(1+Laskentatyökalu!$D$14/100)^Laskenta!H63+Laskentatyökalu!$D$15*Laskentatyökalu!$D$16*(1+Laskentatyökalu!$D$17/100)^Laskenta!H63+Laskentatyökalu!$D$18*Laskentatyökalu!$D$19*(1+Laskentatyökalu!$D$20/100)^H63+Laskentatyökalu!$D$21*Laskentatyökalu!$D$22*(1+Laskentatyökalu!$D$23/100)^Laskenta!H63+Laskentatyökalu!$D$24-Laskentatyökalu!$D$28","v":0},0,{"$f":"1/(1+Laskentatyökalu!$D$9/100)^Laskenta!H63","v":1},0,0,0]
[null,null,null,null,null,null,null,61,{"$f":"IF(H64=Laskentatyökalu!$D$31,Laskentatyökalu!$D$30,0)","v":0},{"$f":"Laskentatyökalu!$D$12*Laskentatyökalu!$D$13*(1+Laskentatyökalu!$D$14/100)^Laskenta!H64+Laskentatyökalu!$D$15*Laskentatyökalu!$D$16*(1+Laskentatyökalu!$D$17/100)^Laskenta!H64+Laskentatyökalu!$D$18*Laskentatyökalu!$D$19*(1+Laskentatyökalu!$D$20/100)^H64+Laskentatyökalu!$D$21*Laskentatyökalu!$D$22*(1+Laskentatyökalu!$D$23/100)^Laskenta!H64+Laskentatyökalu!$D$24-Laskentatyökalu!$D$28","v":0},0,{"$f":"1/(1+Laskentatyökalu!$D$9/100)^Laskenta!H64","v":1},0,0,0]
[null,null,null,null,null,null,null,62,{"$f":"IF(H65=Laskentatyökalu!$D$31,Laskentatyökalu!$D$30,0)","v":0},{"$f":"Laskentatyökalu!$D$12*Laskentatyökalu!$D$13*(1+Laskentatyökalu!$D$14/100)^Laskenta!H65+Laskentatyökalu!$D$15*Laskentatyökalu!$D$16*(1+Laskentatyökalu!$D$17/100)^Laskenta!H65+Laskentatyökalu!$D$18*Laskentatyökalu!$D$19*(1+Laskentatyökalu!$D$20/100)^H65+Laskentatyökalu!$D$21*Laskentatyökalu!$D$22*(1+Laskentatyökalu!$D$23/100)^Laskenta!H65+Laskentatyökalu!$D$24-Laskentatyökalu!$D$28","v":0},0,{"$f":"1/(1+Laskentatyökalu!$D$9/100)^Laskenta!H65","v":1},0,0,0]
[null,null,null,null,null,null,null,63,{"$f":"IF(H66=Laskentatyökalu!$D$31,Laskentatyökalu!$D$30,0)","v":0},{"$f":"Laskentatyökalu!$D$12*Laskentatyökalu!$D$13*(1+Laskentatyökalu!$D$14/100)^Laskenta!H66+Laskentatyökalu!$D$15*Laskentatyökalu!$D$16*(1+Laskentatyökalu!$D$17/100)^Laskenta!H66+Laskentatyökalu!$D$18*Laskentatyökalu!$D$19*(1+Laskentatyökalu!$D$20/100)^H66+Laskentatyökalu!$D$21*Laskentatyökalu!$D$22*(1+Laskentatyökalu!$D$23/100)^Laskenta!H66+Laskentatyökalu!$D$24-Laskentatyökalu!$D$28","v":0},0,{"$f":"1/(1+Laskentatyökalu!$D$9/100)^Laskenta!H66","v":1},0,0,0]
[null,null,null,null,null,null,null,64,{"$f":"IF(H67=Laskentatyökalu!$D$31,Laskentatyökalu!$D$30,0)","v":0},{"$f":"Laskentatyökalu!$D$12*Laskentatyökalu!$D$13*(1+Laskentatyökalu!$D$14/100)^Laskenta!H67+Laskentatyökalu!$D$15*Laskentatyökalu!$D$16*(1+Laskentatyökalu!$D$17/100)^Laskenta!H67+Laskentatyökalu!$D$18*Laskentatyökalu!$D$19*(1+Laskentatyökalu!$D$20/100)^H67+Laskentatyökalu!$D$21*Laskentatyökalu!$D$22*(1+Laskentatyökalu!$D$23/100)^Laskenta!H67+Laskentatyökalu!$D$24-Laskentatyökalu!$D$28","v":0},0,{"$f":"1/(1+Laskentatyökalu!$D$9/100)^Laskenta!H67","v":1},{"$f":"L67*J67-I67","v":0},0,0]
[null,null,null,null,null,null,null,65,{"$f":"IF(H68=Laskentatyökalu!$D$31,Laskentatyökalu!$D$30,0)","v":0},{"$f":"Laskentatyökalu!$D$12*Laskentatyökalu!$D$13*(1+Laskentatyökalu!$D$14/100)^Laskenta!H68+Laskentatyökalu!$D$15*Laskentatyökalu!$D$16*(1+Laskentatyökalu!$D$17/100)^Laskenta!H68+Laskentatyökalu!$D$18*Laskentatyökalu!$D$19*(1+Laskentatyökalu!$D$20/100)^H68+Laskentatyökalu!$D$21*Laskentatyökalu!$D$22*(1+Laskentatyökalu!$D$23/100)^Laskenta!H68+Laskentatyökalu!$D$24-Laskentatyökalu!$D$28","v":0},0,{"$f":"1/(1+Laskentatyökalu!$D$9/100)^Laskenta!H68","v":1},0,0,0]
[null,null,null,null,null,null,null,66,{"$f":"IF(H69=Laskentatyökalu!$D$31,Laskentatyökalu!$D$30,0)","v":0},{"$f":"Laskentatyökalu!$D$12*Laskentatyökalu!$D$13*(1+Laskentatyökalu!$D$14/100)^Laskenta!H69+Laskentatyökalu!$D$15*Laskentatyökalu!$D$16*(1+Laskentatyökalu!$D$17/100)^Laskenta!H69+Laskentatyökalu!$D$18*Laskentatyökalu!$D$19*(1+Laskentatyökalu!$D$20/100)^H69+Laskentatyökalu!$D$21*Laskentatyökalu!$D$22*(1+Laskentatyökalu!$D$23/100)^Laskenta!H69+Laskentatyökalu!$D$24-Laskentatyökalu!$D$28","v":0},{"$f":"J69-I69","v":0},{"$f":"1/(1+Laskentatyökalu!$D$9/100)^Laskenta!H69","v":1},0,0,0]
[null,null,null,null,null,null,null,67,{"$f":"IF(H70=Laskentatyökalu!$D$31,Laskentatyökalu!$D$30,0)","v":0},{"$f":"Laskentatyökalu!$D$12*Laskentatyökalu!$D$13*(1+Laskentatyökalu!$D$14/100)^Laskenta!H70+Laskentatyökalu!$D$15*Laskentatyökalu!$D$16*(1+Laskentatyökalu!$D$17/100)^Laskenta!H70+Laskentatyökalu!$D$18*Laskentatyökalu!$D$19*(1+Laskentatyökalu!$D$20/100)^H70+Laskentatyökalu!$D$21*Laskentatyökalu!$D$22*(1+Laskentatyökalu!$D$23/100)^Laskenta!H70+Laskentatyökalu!$D$24-Laskentatyökalu!$D$28","v":0},0,{"$f":"1/(1+Laskentatyökalu!$D$9/100)^Laskenta!H70","v":1},0,0,0]
[null,null,null,null,null,null,null,68,{"$f":"IF(H71=Laskentatyökalu!$D$31,Laskentatyökalu!$D$30,0)","v":0},{"$f":"Laskentatyökalu!$D$12*Laskentatyökalu!$D$13*(1+Laskentatyökalu!$D$14/100)^Laskenta!H71+Laskentatyökalu!$D$15*Laskentatyökalu!$D$16*(1+Laskentatyökalu!$D$17/100)^Laskenta!H71+Laskentatyökalu!$D$18*Laskentatyökalu!$D$19*(1+Laskentatyökalu!$D$20/100)^H71+Laskentatyökalu!$D$21*Laskentatyökalu!$D$22*(1+Laskentatyökalu!$D$23/100)^Laskenta!H71+Laskentatyökalu!$D$24-Laskentatyökalu!$D$28","v":0},0,{"$f":"1/(1+Laskentatyökalu!$D$9/100)^Laskenta!H71","v":1},0,0,0]
[null,null,null,null,null,null,null,69,{"$f":"IF(H72=Laskentatyökalu!$D$31,Laskentatyökalu!$D$30,0)","v":0},{"$f":"Laskentatyökalu!$D$12*Laskentatyökalu!$D$13*(1+Laskentatyökalu!$D$14/100)^Laskenta!H72+Laskentatyökalu!$D$15*Laskentatyökalu!$D$16*(1+Laskentatyökalu!$D$17/100)^Laskenta!H72+Laskentatyökalu!$D$18*Laskentatyökalu!$D$19*(1+Laskentatyökalu!$D$20/100)^H72+Laskentatyökalu!$D$21*Laskentatyökalu!$D$22*(1+Laskentatyökalu!$D$23/100)^Laskenta!H72+Laskentatyökalu!$D$24-Laskentatyökalu!$D$28","v":0},0,{"$f":"1/(1+Laskentatyökalu!$D$9/100)^Laskenta!H72","v":1},0,0,0]
[null,null,null,null,null,null,null,70,{"$f":"IF(H73=Laskentatyökalu!$D$31,Laskentatyökalu!$D$30,0)","v":0},{"$f":"Laskentatyökalu!$D$12*Laskentatyökalu!$D$13*(1+Laskentatyökalu!$D$14/100)^Laskenta!H73+Laskentatyökalu!$D$15*Laskentatyökalu!$D$16*(1+Laskentatyökalu!$D$17/100)^Laskenta!H73+Laskentatyökalu!$D$18*Laskentatyökalu!$D$19*(1+Laskentatyökalu!$D$20/100)^H73+Laskentatyökalu!$D$21*Laskentatyökalu!$D$22*(1+Laskentatyökalu!$D$23/100)^Laskenta!H73+Laskentatyökalu!$D$24-Laskentatyökalu!$D$28","v":0},0,{"$f":"1/(1+Laskentatyökalu!$D$9/100)^Laskenta!H73","v":1},0,0,0]
[null,null,null,null,null,null,null,71,{"$f":"IF(H74=Laskentatyökalu!$D$31,Laskentatyökalu!$D$30,0)","v":0},{"$f":"Laskentatyökalu!$D$12*Laskentatyökalu!$D$13*(1+Laskentatyökalu!$D$14/100)^Laskenta!H74+Laskentatyökalu!$D$15*Laskentatyökalu!$D$16*(1+Laskentatyökalu!$D$17/100)^Laskenta!H74+Laskentatyökalu!$D$18*Laskentatyökalu!$D$19*(1+Laskentatyökalu!$D$20/100)^H74+Laskentatyökalu!$D$21*Laskentatyökalu!$D$22*(1+Laskentatyökalu!$D$23/100)^Laskenta!H74+Laskentatyökalu!$D$24-Laskentatyökalu!$D$28","v":0},0,{"$f":"1/(1+Laskentatyökalu!$D$9/100)^Laskenta!H74","v":1},0,0,0]
[null,null,null,null,null,null,null,72,{"$f":"IF(H75=Laskentatyökalu!$D$31,Laskentatyökalu!$D$30,0)","v":0},{"$f":"Laskentatyökalu!$D$12*Laskentatyökalu!$D$13*(1+Laskentatyökalu!$D$14/100)^Laskenta!H75+Laskentatyökalu!$D$15*Laskentatyökalu!$D$16*(1+Laskentatyökalu!$D$17/100)^Laskenta!H75+Laskentatyökalu!$D$18*Laskentatyökalu!$D$19*(1+Laskentatyökalu!$D$20/100)^H75+Laskentatyökalu!$D$21*Laskentatyökalu!$D$22*(1+Laskentatyökalu!$D$23/100)^Laskenta!H75+Laskentatyökalu!$D$24-Laskentatyökalu!$D$28","v":0},0,{"$f":"1/(1+Laskentatyökalu!$D$9/100)^Laskenta!H75","v":1},0,0,0]
[null,null,null,null,null,null,null,73,{"$f":"IF(H76=Laskentatyökalu!$D$31,Laskentatyökalu!$D$30,0)","v":0},{"$f":"Laskentatyökalu!$D$12*Laskentatyökalu!$D$13*(1+Laskentatyökalu!$D$14/100)^Laskenta!H76+Laskentatyökalu!$D$15*Laskentatyökalu!$D$16*(1+Laskentatyökalu!$D$17/100)^Laskenta!H76+Laskentatyökalu!$D$18*Laskentatyökalu!$D$19*(1+Laskentatyökalu!$D$20/100)^H76+Laskentatyökalu!$D$21*Laskentatyökalu!$D$22*(1+Laskentatyökalu!$D$23/100)^Laskenta!H76+Laskentatyökalu!$D$24-Laskentatyökalu!$D$28","v":0},0,{"$f":"1/(1+Laskentatyökalu!$D$9/100)^Laskenta!H76","v":1},0,0,0]
[null,null,null,null,null,null,null,74,{"$f":"IF(H77=Laskentatyökalu!$D$31,Laskentatyökalu!$D$30,0)","v":0},{"$f":"Laskentatyökalu!$D$12*Laskentatyökalu!$D$13*(1+Laskentatyökalu!$D$14/100)^Laskenta!H77+Laskentatyökalu!$D$15*Laskentatyökalu!$D$16*(1+Laskentatyökalu!$D$17/100)^Laskenta!H77+Laskentatyökalu!$D$18*Laskentatyökalu!$D$19*(1+Laskentatyökalu!$D$20/100)^H77+Laskentatyökalu!$D$21*Laskentatyökalu!$D$22*(1+Laskentatyökalu!$D$23/100)^Laskenta!H77+Laskentatyökalu!$D$24-Laskentatyökalu!$D$28","v":0},0,{"$f":"1/(1+Laskentatyökalu!$D$9/100)^Laskenta!H77","v":1},0,0,0]
[null,null,null,null,null,null,null,75,{"$f":"IF(H78=Laskentatyökalu!$D$31,Laskentatyökalu!$D$30,0)","v":0},{"$f":"Laskentatyökalu!$D$12*Laskentatyökalu!$D$13*(1+Laskentatyökalu!$D$14/100)^Laskenta!H78+Laskentatyökalu!$D$15*Laskentatyökalu!$D$16*(1+Laskentatyökalu!$D$17/100)^Laskenta!H78+Laskentatyökalu!$D$18*Laskentatyökalu!$D$19*(1+Laskentatyökalu!$D$20/100)^H78+Laskentatyökalu!$D$21*Laskentatyökalu!$D$22*(1+Laskentatyökalu!$D$23/100)^Laskenta!H78+Laskentatyökalu!$D$24-Laskentatyökalu!$D$28","v":0},0,{"$f":"1/(1+Laskentatyökalu!$D$9/100)^Laskenta!H78","v":1},0,0,0]
[null,null,null,null,null,null,null,76,{"$f":"IF(H79=Laskentatyökalu!$D$31,Laskentatyökalu!$D$30,0)","v":0},{"$f":"Laskentatyökalu!$D$12*Laskentatyökalu!$D$13*(1+Laskentatyökalu!$D$14/100)^Laskenta!H79+Laskentatyökalu!$D$15*Laskentatyökalu!$D$16*(1+Laskentatyökalu!$D$17/100)^Laskenta!H79+Laskentatyökalu!$D$18*Laskentatyökalu!$D$19*(1+Laskentatyökalu!$D$20/100)^H79+Laskentatyökalu!$D$21*Laskentatyökalu!$D$22*(1+Laskentatyökalu!$D$23/100)^Laskenta!H79+Laskentatyökalu!$D$24-Laskentatyökalu!$D$28","v":0},0,{"$f":"1/(1+Laskentatyökalu!$D$9/100)^Laskenta!H79","v":1},0,0,0]
[null,null,null,null,null,null,null,77,{"$f":"IF(H80=Laskentatyökalu!$D$31,Laskentatyökalu!$D$30,0)","v":0},{"$f":"Laskentatyökalu!$D$12*Laskentatyökalu!$D$13*(1+Laskentatyökalu!$D$14/100)^Laskenta!H80+Laskentatyökalu!$D$15*Laskentatyökalu!$D$16*(1+Laskentatyökalu!$D$17/100)^Laskenta!H80+Laskentatyökalu!$D$18*Laskentatyökalu!$D$19*(1+Laskentatyökalu!$D$20/100)^H80+Laskentatyökalu!$D$21*Laskentatyökalu!$D$22*(1+Laskentatyökalu!$D$23/100)^Laskenta!H80+Laskentatyökalu!$D$24-Laskentatyökalu!$D$28","v":0},0,{"$f":"1/(1+Laskentatyökalu!$D$9/100)^Laskenta!H80","v":1},0,0,0]
[null,null,null,null,null,null,null,78,{"$f":"IF(H81=Laskentatyökalu!$D$31,Laskentatyökalu!$D$30,0)","v":0},{"$f":"Laskentatyökalu!$D$12*Laskentatyökalu!$D$13*(1+Laskentatyökalu!$D$14/100)^Laskenta!H81+Laskentatyökalu!$D$15*Laskentatyökalu!$D$16*(1+Laskentatyökalu!$D$17/100)^Laskenta!H81+Laskentatyökalu!$D$18*Laskentatyökalu!$D$19*(1+Laskentatyökalu!$D$20/100)^H81+Laskentatyökalu!$D$21*Laskentatyökalu!$D$22*(1+Laskentatyökalu!$D$23/100)^Laskenta!H81+Laskentatyökalu!$D$24-Laskentatyökalu!$D$28","v":0},0,{"$f":"1/(1+Laskentatyökalu!$D$9/100)^Laskenta!H81","v":1},0,0,0]
[null,null,null,null,null,null,null,79,{"$f":"IF(H82=Laskentatyökalu!$D$31,Laskentatyökalu!$D$30,0)","v":0},{"$f":"Laskentatyökalu!$D$12*Laskentatyökalu!$D$13*(1+Laskentatyökalu!$D$14/100)^Laskenta!H82+Laskentatyökalu!$D$15*Laskentatyökalu!$D$16*(1+Laskentatyökalu!$D$17/100)^Laskenta!H82+Laskentatyökalu!$D$18*Laskentatyökalu!$D$19*(1+Laskentatyökalu!$D$20/100)^H82+Laskentatyökalu!$D$21*Laskentatyökalu!$D$22*(1+Laskentatyökalu!$D$23/100)^Laskenta!H82+Laskentatyökalu!$D$24-Laskentatyökalu!$D$28","v":0},0,{"$f":"1/(1+Laskentatyökalu!$D$9/100)^Laskenta!H82","v":1},0,0,0]
[null,null,null,null,null,null,null,80,{"$f":"IF(H83=Laskentatyökalu!$D$31,Laskentatyökalu!$D$30,0)","v":0},{"$f":"Laskentatyökalu!$D$12*Laskentatyökalu!$D$13*(1+Laskentatyökalu!$D$14/100)^Laskenta!H83+Laskentatyökalu!$D$15*Laskentatyökalu!$D$16*(1+Laskentatyökalu!$D$17/100)^Laskenta!H83+Laskentatyökalu!$D$18*Laskentatyökalu!$D$19*(1+Laskentatyökalu!$D$20/100)^H83+Laskentatyökalu!$D$21*Laskentatyökalu!$D$22*(1+Laskentatyökalu!$D$23/100)^Laskenta!H83+Laskentatyökalu!$D$24-Laskentatyökalu!$D$28","v":0},0,{"$f":"1/(1+Laskentatyökalu!$D$9/100)^Laskenta!H83","v":1},0,0,0]
[null,null,null,null,null,null,null,81,{"$f":"IF(H84=Laskentatyökalu!$D$31,Laskentatyökalu!$D$30,0)","v":0},{"$f":"Laskentatyökalu!$D$12*Laskentatyökalu!$D$13*(1+Laskentatyökalu!$D$14/100)^Laskenta!H84+Laskentatyökalu!$D$15*Laskentatyökalu!$D$16*(1+Laskentatyökalu!$D$17/100)^Laskenta!H84+Laskentatyökalu!$D$18*Laskentatyökalu!$D$19*(1+Laskentatyökalu!$D$20/100)^H84+Laskentatyökalu!$D$21*Laskentatyökalu!$D$22*(1+Laskentatyökalu!$D$23/100)^Laskenta!H84+Laskentatyökalu!$D$24-Laskentatyökalu!$D$28","v":0},0,{"$f":"1/(1+Laskentatyökalu!$D$9/100)^Laskenta!H84","v":1},0,0,0]
[null,null,null,null,null,null,null,82,{"$f":"IF(H85=Laskentatyökalu!$D$31,Laskentatyökalu!$D$30,0)","v":0},{"$f":"Laskentatyökalu!$D$12*Laskentatyökalu!$D$13*(1+Laskentatyökalu!$D$14/100)^Laskenta!H85+Laskentatyökalu!$D$15*Laskentatyökalu!$D$16*(1+Laskentatyökalu!$D$17/100)^Laskenta!H85+Laskentatyökalu!$D$18*Laskentatyökalu!$D$19*(1+Laskentatyökalu!$D$20/100)^H85+Laskentatyökalu!$D$21*Laskentatyökalu!$D$22*(1+Laskentatyökalu!$D$23/100)^Laskenta!H85+Laskentatyökalu!$D$24-Laskentatyökalu!$D$28","v":0},0,{"$f":"1/(1+Laskentatyökalu!$D$9/100)^Laskenta!H85","v":1},0,0,0]
[null,null,null,null,null,null,null,83,{"$f":"IF(H86=Laskentatyökalu!$D$31,Laskentatyökalu!$D$30,0)","v":0},{"$f":"Laskentatyökalu!$D$12*Laskentatyökalu!$D$13*(1+Laskentatyökalu!$D$14/100)^Laskenta!H86+Laskentatyökalu!$D$15*Laskentatyökalu!$D$16*(1+Laskentatyökalu!$D$17/100)^Laskenta!H86+Laskentatyökalu!$D$18*Laskentatyökalu!$D$19*(1+Laskentatyökalu!$D$20/100)^H86+Laskentatyökalu!$D$21*Laskentatyökalu!$D$22*(1+Laskentatyökalu!$D$23/100)^Laskenta!H86+Laskentatyökalu!$D$24-Laskentatyökalu!$D$28","v":0},0,{"$f":"1/(1+Laskentatyökalu!$D$9/100)^Laskenta!H86","v":1},0,0,0]
[null,null,null,null,null,null,null,84,{"$f":"IF(H87=Laskentatyökalu!$D$31,Laskentatyökalu!$D$30,0)","v":0},{"$f":"Laskentatyökalu!$D$12*Laskentatyökalu!$D$13*(1+Laskentatyökalu!$D$14/100)^Laskenta!H87+Laskentatyökalu!$D$15*Laskentatyökalu!$D$16*(1+Laskentatyökalu!$D$17/100)^Laskenta!H87+Laskentatyökalu!$D$18*Laskentatyökalu!$D$19*(1+Laskentatyökalu!$D$20/100)^H87+Laskentatyökalu!$D$21*Laskentatyökalu!$D$22*(1+Laskentatyökalu!$D$23/100)^Laskenta!H87+Laskentatyökalu!$D$24-Laskentatyökalu!$D$28","v":0},0,{"$f":"1/(1+Laskentatyökalu!$D$9/100)^Laskenta!H87","v":1},0,0,0]
[null,null,null,null,null,null,null,85,{"$f":"IF(H88=Laskentatyökalu!$D$31,Laskentatyökalu!$D$30,0)","v":0},{"$f":"Laskentatyökalu!$D$12*Laskentatyökalu!$D$13*(1+Laskentatyökalu!$D$14/100)^Laskenta!H88+Laskentatyökalu!$D$15*Laskentatyökalu!$D$16*(1+Laskentatyökalu!$D$17/100)^Laskenta!H88+Laskentatyökalu!$D$18*Laskentatyökalu!$D$19*(1+Laskentatyökalu!$D$20/100)^H88+Laskentatyökalu!$D$21*Laskentatyökalu!$D$22*(1+Laskentatyökalu!$D$23/100)^Laskenta!H88+Laskentatyökalu!$D$24-Laskentatyökalu!$D$28","v":0},0,{"$f":"1/(1+Laskentatyökalu!$D$9/100)^Laskenta!H88","v":1},0,0,0]
[null,null,null,null,null,null,null,86,{"$f":"IF(H89=Laskentatyökalu!$D$31,Laskentatyökalu!$D$30,0)","v":0},{"$f":"Laskentatyökalu!$D$12*Laskentatyökalu!$D$13*(1+Laskentatyökalu!$D$14/100)^Laskenta!H89+Laskentatyökalu!$D$15*Laskentatyökalu!$D$16*(1+Laskentatyökalu!$D$17/100)^Laskenta!H89+Laskentatyökalu!$D$18*Laskentatyökalu!$D$19*(1+Laskentatyökalu!$D$20/100)^H89+Laskentatyökalu!$D$21*Laskentatyökalu!$D$22*(1+Laskentatyökalu!$D$23/100)^Laskenta!H89+Laskentatyökalu!$D$24-Laskentatyökalu!$D$28","v":0},0,{"$f":"1/(1+Laskentatyökalu!$D$9/100)^Laskenta!H89","v":1},0,0,0]
[null,null,null,null,null,null,null,87,{"$f":"IF(H90=Laskentatyökalu!$D$31,Laskentatyökalu!$D$30,0)","v":0},{"$f":"Laskentatyökalu!$D$12*Laskentatyökalu!$D$13*(1+Laskentatyökalu!$D$14/100)^Laskenta!H90+Laskentatyökalu!$D$15*Laskentatyökalu!$D$16*(1+Laskentatyökalu!$D$17/100)^Laskenta!H90+Laskentatyökalu!$D$18*Laskentatyökalu!$D$19*(1+Laskentatyökalu!$D$20/100)^H90+Laskentatyökalu!$D$21*Laskentatyökalu!$D$22*(1+Laskentatyökalu!$D$23/100)^Laskenta!H90+Laskentatyökalu!$D$24-Laskentatyökalu!$D$28","v":0},0,{"$f":"1/(1+Laskentatyökalu!$D$9/100)^Laskenta!H90","v":1},0,0,0]
[null,null,null,null,null,null,null,88,{"$f":"IF(H91=Laskentatyökalu!$D$31,Laskentatyökalu!$D$30,0)","v":0},{"$f":"Laskentatyökalu!$D$12*Laskentatyökalu!$D$13*(1+Laskentatyökalu!$D$14/100)^Laskenta!H91+Laskentatyökalu!$D$15*Laskentatyökalu!$D$16*(1+Laskentatyökalu!$D$17/100)^Laskenta!H91+Laskentatyökalu!$D$18*Laskentatyökalu!$D$19*(1+Laskentatyökalu!$D$20/100)^H91+Laskentatyökalu!$D$21*Laskentatyökalu!$D$22*(1+Laskentatyökalu!$D$23/100)^Laskenta!H91+Laskentatyökalu!$D$24-Laskentatyökalu!$D$28","v":0},0,{"$f":"1/(1+Laskentatyökalu!$D$9/100)^Laskenta!H91","v":1},0,0,0]
[null,null,null,null,null,null,null,89,{"$f":"IF(H92=Laskentatyökalu!$D$31,Laskentatyökalu!$D$30,0)","v":0},{"$f":"Laskentatyökalu!$D$12*Laskentatyökalu!$D$13*(1+Laskentatyökalu!$D$14/100)^Laskenta!H92+Laskentatyökalu!$D$15*Laskentatyökalu!$D$16*(1+Laskentatyökalu!$D$17/100)^Laskenta!H92+Laskentatyökalu!$D$18*Laskentatyökalu!$D$19*(1+Laskentatyökalu!$D$20/100)^H92+Laskentatyökalu!$D$21*Laskentatyökalu!$D$22*(1+Laskentatyökalu!$D$23/100)^Laskenta!H92+Laskentatyökalu!$D$24-Laskentatyökalu!$D$28","v":0},0,{"$f":"1/(1+Laskentatyökalu!$D$9/100)^Laskenta!H92","v":1},0,0,0]
[null,null,null,null,null,null,null,90,{"$f":"IF(H93=Laskentatyökalu!$D$31,Laskentatyökalu!$D$30,0)","v":0},{"$f":"Laskentatyökalu!$D$12*Laskentatyökalu!$D$13*(1+Laskentatyökalu!$D$14/100)^Laskenta!H93+Laskentatyökalu!$D$15*Laskentatyökalu!$D$16*(1+Laskentatyökalu!$D$17/100)^Laskenta!H93+Laskentatyökalu!$D$18*Laskentatyökalu!$D$19*(1+Laskentatyökalu!$D$20/100)^H93+Laskentatyökalu!$D$21*Laskentatyökalu!$D$22*(1+Laskentatyökalu!$D$23/100)^Laskenta!H93+Laskentatyökalu!$D$24-Laskentatyökalu!$D$28","v":0},0,{"$f":"1/(1+Laskentatyökalu!$D$9/100)^Laskenta!H93","v":1},0,0,0]
[null,null,null,null,null,null,null,91,{"$f":"IF(H94=Laskentatyökalu!$D$31,Laskentatyökalu!$D$30,0)","v":0},{"$f":"Laskentatyökalu!$D$12*Laskentatyökalu!$D$13*(1+Laskentatyökalu!$D$14/100)^Laskenta!H94+Laskentatyökalu!$D$15*Laskentatyökalu!$D$16*(1+Laskentatyökalu!$D$17/100)^Laskenta!H94+Laskentatyökalu!$D$18*Laskentatyökalu!$D$19*(1+Laskentatyökalu!$D$20/100)^H94+Laskentatyökalu!$D$21*Laskentatyökalu!$D$22*(1+Laskentatyökalu!$D$23/100)^Laskenta!H94+Laskentatyökalu!$D$24-Laskentatyökalu!$D$28","v":0},0,{"$f":"1/(1+Laskentatyökalu!$D$9/100)^Laskenta!H94","v":1},0,0,0]
[null,null,null,null,null,null,null,92,{"$f":"IF(H95=Laskentatyökalu!$D$31,Laskentatyökalu!$D$30,0)","v":0},{"$f":"Laskentatyökalu!$D$12*Laskentatyökalu!$D$13*(1+Laskentatyökalu!$D$14/100)^Laskenta!H95+Laskentatyökalu!$D$15*Laskentatyökalu!$D$16*(1+Laskentatyökalu!$D$17/100)^Laskenta!H95+Laskentatyökalu!$D$18*Laskentatyökalu!$D$19*(1+Laskentatyökalu!$D$20/100)^H95+Laskentatyökalu!$D$21*Laskentatyökalu!$D$22*(1+Laskentatyökalu!$D$23/100)^Laskenta!H95+Laskentatyökalu!$D$24-Laskentatyökalu!$D$28","v":0},0,{"$f":"1/(1+Laskentatyökalu!$D$9/100)^Laskenta!H95","v":1},0,0,0]
[null,null,null,null,null,null,null,93,{"$f":"IF(H96=Laskentatyökalu!$D$31,Laskentatyökalu!$D$30,0)","v":0},{"$f":"Laskentatyökalu!$D$12*Laskentatyökalu!$D$13*(1+Laskentatyökalu!$D$14/100)^Laskenta!H96+Laskentatyökalu!$D$15*Laskentatyökalu!$D$16*(1+Laskentatyökalu!$D$17/100)^Laskenta!H96+Laskentatyökalu!$D$18*Laskentatyökalu!$D$19*(1+Laskentatyökalu!$D$20/100)^H96+Laskentatyökalu!$D$21*Laskentatyökalu!$D$22*(1+Laskentatyökalu!$D$23/100)^Laskenta!H96+Laskentatyökalu!$D$24-Laskentatyökalu!$D$28","v":0},0,{"$f":"1/(1+Laskentatyökalu!$D$9/100)^Laskenta!H96","v":1},0,0,0]
[null,null,null,null,null,null,null,94,{"$f":"IF(H97=Laskentatyökalu!$D$31,Laskentatyökalu!$D$30,0)","v":0},{"$f":"Laskentatyökalu!$D$12*Laskentatyökalu!$D$13*(1+Laskentatyökalu!$D$14/100)^Laskenta!H97+Laskentatyökalu!$D$15*Laskentatyökalu!$D$16*(1+Laskentatyökalu!$D$17/100)^Laskenta!H97+Laskentatyökalu!$D$18*Laskentatyökalu!$D$19*(1+Laskentatyökalu!$D$20/100)^H97+Laskentatyökalu!$D$21*Laskentatyökalu!$D$22*(1+Laskentatyökalu!$D$23/100)^Laskenta!H97+Laskentatyökalu!$D$24-Laskentatyökalu!$D$28","v":0},0,{"$f":"1/(1+Laskentatyökalu!$D$9/100)^Laskenta!H97","v":1},0,0,0]
[null,null,null,null,null,null,null,95,{"$f":"IF(H98=Laskentatyökalu!$D$31,Laskentatyökalu!$D$30,0)","v":0},{"$f":"Laskentatyökalu!$D$12*Laskentatyökalu!$D$13*(1+Laskentatyökalu!$D$14/100)^Laskenta!H98+Laskentatyökalu!$D$15*Laskentatyökalu!$D$16*(1+Laskentatyökalu!$D$17/100)^Laskenta!H98+Laskentatyökalu!$D$18*Laskentatyökalu!$D$19*(1+Laskentatyökalu!$D$20/100)^H98+Laskentatyökalu!$D$21*Laskentatyökalu!$D$22*(1+Laskentatyökalu!$D$23/100)^Laskenta!H98+Laskentatyökalu!$D$24-Laskentatyökalu!$D$28","v":0},0,{"$f":"1/(1+Laskentatyökalu!$D$9/100)^Laskenta!H98","v":1},0,0,0]
[null,null,null,null,null,null,null,96,{"$f":"IF(H99=Laskentatyökalu!$D$31,Laskentatyökalu!$D$30,0)","v":0},{"$f":"Laskentatyökalu!$D$12*Laskentatyökalu!$D$13*(1+Laskentatyökalu!$D$14/100)^Laskenta!H99+Laskentatyökalu!$D$15*Laskentatyökalu!$D$16*(1+Laskentatyökalu!$D$17/100)^Laskenta!H99+Laskentatyökalu!$D$18*Laskentatyökalu!$D$19*(1+Laskentatyökalu!$D$20/100)^H99+Laskentatyökalu!$D$21*Laskentatyökalu!$D$22*(1+Laskentatyökalu!$D$23/100)^Laskenta!H99+Laskentatyökalu!$D$24-Laskentatyökalu!$D$28","v":0},0,{"$f":"1/(1+Laskentatyökalu!$D$9/100)^Laskenta!H99","v":1},{"$f":"L99*J99-I99","v":0},0,0]
[null,null,null,null,null,null,null,97,{"$f":"IF(H100=Laskentatyökalu!$D$31,Laskentatyökalu!$D$30,0)","v":0},{"$f":"Laskentatyökalu!$D$12*Laskentatyökalu!$D$13*(1+Laskentatyökalu!$D$14/100)^Laskenta!H100+Laskentatyökalu!$D$15*Laskentatyökalu!$D$16*(1+Laskentatyökalu!$D$17/100)^Laskenta!H100+Laskentatyökalu!$D$18*Laskentatyökalu!$D$19*(1+Laskentatyökalu!$D$20/100)^H100+Laskentatyökalu!$D$21*Laskentatyökalu!$D$22*(1+Laskentatyökalu!$D$23/100)^Laskenta!H100+Laskentatyökalu!$D$24-Laskentatyökalu!$D$28","v":0},0,{"$f":"1/(1+Laskentatyökalu!$D$9/100)^Laskenta!H100","v":1},0,0,0]
[null,null,null,null,null,null,null,98,{"$f":"IF(H101=Laskentatyökalu!$D$31,Laskentatyökalu!$D$30,0)","v":0},{"$f":"Laskentatyökalu!$D$12*Laskentatyökalu!$D$13*(1+Laskentatyökalu!$D$14/100)^Laskenta!H101+Laskentatyökalu!$D$15*Laskentatyökalu!$D$16*(1+Laskentatyökalu!$D$17/100)^Laskenta!H101+Laskentatyökalu!$D$18*Laskentatyökalu!$D$19*(1+Laskentatyökalu!$D$20/100)^H101+Laskentatyökalu!$D$21*Laskentatyökalu!$D$22*(1+Laskentatyökalu!$D$23/100)^Laskenta!H101+Laskentatyökalu!$D$24-Laskentatyökalu!$D$28","v":0},0,{"$f":"1/(1+Laskentatyökalu!$D$9/100)^Laskenta!H101","v":1},0,{"$f":"N100+M101","v":0},0]
[null,null,null,null,null,null,null,99,{"$f":"IF(H102=Laskentatyökalu!$D$31,Laskentatyökalu!$D$30,0)","v":0},{"$f":"Laskentatyökalu!$D$12*Laskentatyökalu!$D$13*(1+Laskentatyökalu!$D$14/100)^Laskenta!H102+Laskentatyökalu!$D$15*Laskentatyökalu!$D$16*(1+Laskentatyökalu!$D$17/100)^Laskenta!H102+Laskentatyökalu!$D$18*Laskentatyökalu!$D$19*(1+Laskentatyökalu!$D$20/100)^H102+Laskentatyökalu!$D$21*Laskentatyökalu!$D$22*(1+Laskentatyökalu!$D$23/100)^Laskenta!H102+Laskentatyökalu!$D$24-Laskentatyökalu!$D$28","v":0},0,{"$f":"1/(1+Laskentatyökalu!$D$9/100)^Laskenta!H102","v":1},0,{"$f":"N101+M102","v":0},0]
[null,null,null,null,null,null,null,100,{"$f":"IF(H103=Laskentatyökalu!$D$31,Laskentatyökalu!$D$30,0)","v":0},{"$f":"Laskentatyökalu!$D$12*Laskentatyökalu!$D$13*(1+Laskentatyökalu!$D$14/100)^Laskenta!H103+Laskentatyökalu!$D$15*Laskentatyökalu!$D$16*(1+Laskentatyökalu!$D$17/100)^Laskenta!H103+Laskentatyökalu!$D$18*Laskentatyökalu!$D$19*(1+Laskentatyökalu!$D$20/100)^H103+Laskentatyökalu!$D$21*Laskentatyökalu!$D$22*(1+Laskentatyökalu!$D$23/100)^Laskenta!H103+Laskentatyökalu!$D$24-Laskentatyökalu!$D$28","v":0},0,{"$f":"1/(1+Laskentatyökalu!$D$9/100)^Laskenta!H103","v":1},0,{"$f":"N102+M103","v":0},0]